Cogmind - Beta 16 *** ADVENTURER MODE // 2025.10.24 @ 09:03:46 Player: Plonker Result: Destroyed by G-34 Mercenary with Small Laser Performance ------------- Evolutions (1) 500 Regions Visited (3) 600 Robots Destroyed (11) 55 Value Destroyed (436) 436 Prototype IDs (2) 40 Alien Tech Used (0) 0 Bonus (0) 0 TOTAL SCORE: 1631 Bonus ------- None Cogmind --------- Core Integrity 0/400 Matter 106/300 Energy 100/100 System Corruption 0% Temperature Cool (21) Movement Core (1000) Ox19 Location -9/Materials Parts ------- > --- POWER (2) -------- (None) > --- PROPULSION (2) --- (None) > --- UTILITY (3) ------ Large Storage Unit High-capacity Storage Unit > --- WEAPON (2) ------- (None) > --- INVENTORY (20) --- (None) Peak State ------------ > --- POWER ------------ Ion Engine Light Ion Engine > --- PROPULSION ------- Light Treads Light Treads > --- UTILITY ---------- Heat Sink Small Storage Unit Large Storage Unit > --- WEAPON ----------- Light Assault Rifle Rocket Launcher > --- INVENTORY -------- (None) [Rating: 10] Favorites ----------- Power Ion Engine Engine Ion Engine Propulsion Light Treads Treads Light Treads Utility Small Storage Unit Device Heat Sink Storage Small Storage Unit Processor Targeting Computer Weapon Light Assault Rifle Ballistic Gun Light Assault Rifle Launcher Rocket Launcher Build | -11 -10 -10 -9 ------- Run | Yrd Mat Min Mat Slots Evolved 2 | . . . 2 Power 1 | . . . 1 Propulsion . | . . . . Utility 1 | . . . 1 Weapon . | . . . . Parts Attached 16 | 5 2 1 8 Power 3 | 1 . . 2 Engine 3 | 1 . . 2 Core . | . . . . Reactor . | . . . . Propulsion 3 | 2 . . 1 Treads 3 | 2 . . 1 Leg . | . . . . Wheel . | . . . . Hover . | . . . . Flight . | . . . . Utility 8 | 1 2 . 5 Device 3 | . 1 . 2 Storage 4 | 1 . . 3 Processor 1 | . 1 . . Hackware . | . . . . Protection . | . . . . Artifact . | . . . . Weapon 2 | 1 . 1 . Energy Gun . | . . . . Energy Cannon . | . . . . Ballistic Gun 1 | 1 . . . Ballistic Cannon . | . . . . Launcher 1 | . . 1 . Special Weapon . | . . . . Impact Weapon . | . . . . Slashing Weapon . | . . . . Piercing Weapon . | . . . . Special Melee Weapon . | . . . . Unidentified Prototypes . | . . . . Parts Lost 12 | . 1 . 11 Power 3 | . . . 3 Propulsion 3 | . . . 3 Utility 4 | . 1 . 3 Weapon 2 | . . . 2 Highest Loss Streak 11 | . 1 . 11 To Critical Strikes . | . . . . Average Backups 1 | 1 1 1 2 Power . | . 1 1 . Propulsion . | . . . . Utility . | . . . 1 Weapon . | . . . . Tool/Special . | . . . . Unused Backups . | . . . . Power . | . . . . Propulsion . | . . . . Utility . | . . . . Weapon . | . . . . Tool/Special . | . . . . Average Slot Usage (%) 88 | . 76 96 94 Engine 17 | . 14 14 20 Treads 24 | . 28 28 20 Device 10 | . 4 14 13 Storage 16 | . 14 14 18 Ballistic Gun 12 | . 14 14 10 Launcher 6 | . . 10 9 Peak Build Rating 10 | 5 6 8 10 Average Rating 7 | 4 5 7 9 On Entrance 4 | . 5 5 8 Avg Prop Armor Cover (%) . | . . . . Naked Turns . | . . . . Heaviest Build 74 | 11 12 16 74 Greatest Support 40 | 40 40 40 40 Greatest Overweight (x) 20 | . . . 20 Average Overweight (x) . | . . . . Largest Inventory Capacity 20 | 8 8 8 20 Average Capacity 12 | 7 8 8 16 Most Carried 5 | 5 2 2 5 Average Carried 1 | 1 1 1 2 Final Capacity 20 | 8 8 8 20 Final Carried 2 | 1 2 1 . Class Distribution -------------------- 100% | Mutant Dominant Class ---------------- Mutant | -10/Materials Mutant | -10/Mines Mutant | -9/Materials Resources | -11 -10 -10 -9 ----------- Run | Yrd Mat Min Mat Matter Collected 332 | 169 50 . 113 Remotely . | . . . . Salvage Created 305 | . 50 32 223 Parts 16 | . 3 3 10 Haulers Intercepted . | . . . . Recyclers Shooed . | . . . . Parts Field Recycled . | . . . . Retrieved Matter . | . . . . Parts Self-Destructed . | . . . . Prevented . | . . . . Parts Restored . | . . . . Kills | -11 -10 -10 -9 ------- Run | Yrd Mat Min Mat Combat Hostiles Destroyed 9 | . 1 2 6 Guns 2 | . 1 . 1 AOE 7 | . . 2 5 Classes Destroyed 4 | . 1 1 2 Recycler 1 | . . . 1 Watcher 1 | . . . 1 Grunt 4 | . 1 . 3 Sentry 5 | . . 2 3 Best Kill Streak 3 | . 1 2 3 Combat Bots Only 3 | . 1 2 3 Max Kills in Single Turn 3 | . 1 1 3 Gunslinging . | . . . . Exploded 3 | . . 1 3 Melee . | . . . . Uniques/NPCs Destroyed . | . . . . Combat | -11 -10 -10 -9 -------- Run | Yrd Mat Min Mat Hostile Shots Fired 203 | . 19 18 166 Missed 46 | . 3 3 40 Hits 157 | . 16 15 126 Projectile 157 | . 16 15 126 Critical Strikes 5 | . . 1 4 Damage Taken 1532 | . 99 212 1221 Core 495 | . 30 64 401 Absorbed by Shields . | . . . . Ignored by Resistances 464 | . 36 62 366 Core Remaining (%) 81 | 100 . 62 . Volleys Fired 29 | . 2 6 21 Largest 2 | . 1 2 2 Hottest 53 | . 20 53 53 Shots Fired 46 | . 2 12 32 Gun 29 | . 2 6 21 Cannon . | . . . . Launcher 17 | . . 6 11 Special . | . . . . Kinetic 29 | . 2 6 21 Thermal . | . . . . Explosive 17 | . . 6 11 Electromagnetic . | . . . . Robot Hit Streak 15 | . 2 14 15 Robot Miss Streak 2 | . . . 2 Penetration Max . | . . . . Secondary Targets . | . . . . Shots Hit Robots 40 | . 2 12 26 Core Hits 32 | . 2 7 23 Critical Kills . | . . . . Critical Parts Destroyed 1 | . . . 1 Critical Strikes 1 | . . . 1 Destroy 1 | . . . 1 Melee Attacks . | . . . . Impact . | . . . . Slashing . | . . . . Piercing . | . . . . Sneak Attacks . | . . . . Combat Hostiles . | . . . . Follow-up Attacks . | . . . . Damage Inflicted 798 | . 16 220 562 Guns 203 | . 16 48 139 Cannons . | . . . . Explosions 595 | . . 172 423 Melee . | . . . . Ramming . | . . . . Kinetic 203 | . 16 48 139 Thermal . | . . . . Explosive 595 | . . 172 423 Electromagnetic . | . . . . Impact . | . . . . Slashing . | . . . . Piercing . | . . . . Highest Corruption . | . . . . Average Corruption . | . . . . Corruption Purged . | . . . . Corruption Blocked . | . . . . Overload Shots . | . . . . Overflow Damage . | . . . . Projectiles . | . . . . Explosions . | . . . . Melee . | . . . . Knockbacks . | . . . . Impact . | . . . . Kinetic . | . . . . Secondary . | . . . . Self-Inflicted Damage 43 | . . 43 . Shots 4 | . . 4 . Rammed . | . . . . Targets Rammed . | . . . . Kicked . | . . . . Crushed . | . . . . Highest Temperature 7 | . . 5 7 Average Temperature 4 | . . 3 5 Received Heat Transfer 798 | . 24 81 693 Siege Activations . | . . . . Martial Activations . | . . . . Shielding Activations . | . . . . Robots Disrupted . | . . . . Combat Hostiles . | . . . . Robots Corrupted . | . . . . Combat Hostiles . | . . . . Parts Fried . | . . . . Impact Corruptions . | . . . . Robots Melted . | . . . . Combat Hostiles . | . . . . Parts Melted . | . . . . Heat Transferred . | . . . . Parts Sabotaged . | . . . . Parts Stolen . | . . . . Parts Stripped . | . . . . Power Chain Reactions . | . . . . Alert | -11 -10 -10 -9 ------- Run | Yrd Mat Min Mat Maximum Alert Level . | . . . . Low Security (%) 100 | 100 100 100 100 Level 1 . | . . . . Level 2 . | . . . . Level 3 . | . . . . Level 4 . | . . . . Level 5 . | . . . . High Security . | . . . . Max Security . | . . . . Peak Influence 112 | . 20 54 112 Initial 1 | . . . 1 Average 22 | . 1 29 39 Influence Increases 404 | . 32 75 297 Destroy 0b10 Robot/C 180 | . 20 40 120 Destroy 0b10 Robot/NC 10 | . . . 10 Destroy Leader 42 | . . . 42 Trap Triggered on 0b10 10 | . . . 10 Successful Hack 26 | . 12 11 3 Disable Machine 36 | . . . 36 Destroy Structure 100 | . . 24 76 Influence Decreases 404 | . 32 68 304 Entered New Map 6 | . . . 6 Time Decay 257 | . 32 40 185 Lost Part 10 | . . . 10 Purge Threat 131 | . . 28 103 Squads Dispatched 2 | . . . 2 Investigation 2 | . . . 2 Extermination . | . . . . Reinforcement . | . . . . Assault . | . . . . Garrison . | . . . . Intercept . | . . . . Searches Triggered . | . . . . Construction Impeded . | . . . . Haulers Reinforced . | . . . . Active Scanning Responses . | . . . . Cargo Convoy Interrupts . | . . . . Stealth | -11 -10 -10 -9 --------- Run | Yrd Mat Min Mat Distress Signals 1 | . . . 1 Communications Jammed . | . . . . Distress Signals . | . . . . Times Spotted 19 | . 4 2 13 Peak Tracking Total 6 | . 4 2 6 Tactical Retreats . | . . . . Traps | -11 -10 -10 -9 ------- Run | Yrd Mat Min Mat Traps Triggered . | . . . . Indirectly . | . . . . Trap Hack Attempts . | . . . . Triggered . | . . . . Disarmed . | . . . . Reprogrammed 6 | . . . 6 Reused 1 | . . . 1 Traps Extracted . | . . . . Installed . | . . . . Triggered 1 | . . . 1 Machines | -11 -10 -10 -9 ---------- Run | Yrd Mat Min Mat Machines Disabled 6 | . . 2 4 Max in Single Turn 2 | . . 2 1 Machines Repaired . | . . . . Machines Dismantled . | . . . . Machines Sabotaged . | . . . . Overloaded Fab Kills . | . . . . Hacking | -11 -10 -10 -9 --------- Run | Yrd Mat Min Mat Machines Accessed 8 | . 5 1 2 Terminals 7 | . 4 1 2 Fabricators . | . . . . Repair Stations . | . . . . Recycling Units 1 | . 1 . . Scanalyzers . | . . . . Garrison Access . | . . . . Total Hacks 25 | . 13 4 8 Successful 17 | . 9 3 5 Failed 8 | . 4 1 3 Catastrophic 1 | . . . 1 Database Lockouts . | . . . . Manual 15 | . 6 5 4 Terminals 23 | . 11 4 8 Fabricators . | . . . . Repair Stations . | . . . . Recycling Units 2 | . 2 . . Scanalyzers . | . . . . Garrison Access . | . . . . Terminal Hacks 9 | . 4 2 3 Record 1 | . 1 . . Prototype ID Bank 1 | . 1 . . Emergency Access Points 1 | . 1 . . Alert Level 1 | . 1 . . Unreport Threat 4 | . . 2 2 Reprogram Traps 1 | . . . 1 Fabricator Hacks . | . . . . Repair Station Hacks . | . . . . Recycling Unit Hacks 1 | . 1 . . Retrieve Components 1 | . 1 . . Scanalyzer . | . . . . Garrison Access Hacks . | . . . . Unauthorized Hacks 7 | . 4 1 2 Terminals 7 | . 4 1 2 Botnet 7 | . 4 1 2 Fabricators . | . . . . Repair Stations . | . . . . Recycling Units . | . . . . Scanalyzers . | . . . . Garrison Access . | . . . . Data Cores Recovered . | . . . . Used . | . . . . Hacking Detections 8 | . 5 1 2 Full Trace Events 1 | . . . 1 Feedback Events . | . . . . Feedback Blocked . | . . . . Robot Schematics Acquired . | . . . . Robots Built . | . . . . Authchips . | . . . . Time . | . . . . Total Robot Build Rating . | . . . . Part Schematics Acquired . | . . . . Parts Built . | . . . . Authchips . | . . . . Time . | . . . . Total Part Build Rating . | . . . . Part Studies Acquired . | . . . . Parts Repaired . | . . . . Time . | . . . . Parts Recycled . | . . . . Recycled Matter . | . . . . Retrieved Matter . | . . . . Retrieved Components 2 | . 2 . . Parts Scanalyzed . | . . . . Part Schematics Acquired . | . . . . Parts Damaged . | . . . . Bothacking | -11 -10 -10 -9 ------------ Run | Yrd Mat Min Mat Used RIF Installer . | . . . . Robots Hacked . | . . . . Non-combat . | . . . . Combat . | . . . . Robot Hacks Applied . | . . . . Relay Couplers Released . | . . . . Fabnet Peak Effective % . | . . . . Robots Rewired . | . . . . Allies Hacked . | . . . . Hacks Repelled . | . . . . Allies | -11 -10 -10 -9 -------- Run | Yrd Mat Min Mat Total Allies . | . . . . Largest Group . | . . . . Highest-Rated Group . | . . . . Highest-Rated Ally . | . . . . Total Orders . | . . . . Ally Attacks . | . . . . Total Damage . | . . . . Kills . | . . . . Allies Corrupted . | . . . . Allies Melted . | . . . . Intel | -11 -10 -10 -9 ------- Run | Yrd Mat Min Mat Active Infowar (turns) 128 | . . . 128 Seismic 128 | . . . 128 Robot Analysis Total . | . . . . Derelict Logs Recovered . | . . . . Drone Launches . | . . . . Drone Recoveries . | . . . . Exploration | -11 -10 -10 -9 ------------- Run | Yrd Mat Min Mat Turns Passed 1067 | 114 329 107 517 Spaces Moved 570 | 75 201 55 239 Core 17 | 14 . . 3 Treads 553 | 61 201 55 236 Legs . | . . . . Wheels . | . . . . Hover . | . . . . Flight . | . . . . Fastest Speed 50 | 50 160 160 160 Average Speed 170 | 139 160 160 191 Slowest Speed 1050 | 160 160 160 1050 Overloaded Moves . | . . . . Propulsion Burnouts . | . . . . Robots Hopped . | . . . . Potential Cave-ins . | . . . . Cave-ins Triggered . | . . . . Exploration Rate (%) 20 | 4 32 25 21 Regions Visited 3 Branch Regions 1 Pre-discovered Areas . | . . . . Known Exits Taken . | . . . . Unknown Exits Taken 3 | 1 1 1 . Scrap Searched . | . . . . Spaces Dug . | . . . . Terrain Destroyed 142 | . . 47 95 Melee . | . . . . Projectile . | . . . . AOE 142 | . . 47 95 Terrain Rammed . | . . . . Walls Destroyed . | . . . . Machines Disabled . | . . . . Actions | -11 -10 -10 -9 --------- Run | Yrd Mat Min Mat Total 630 | 84 206 63 277 Wait . | . . . . Move 567 | 74 200 54 239 Hop . | . . . . Pick Up 15 | 5 2 1 7 Fast Attach 1 | 1 . . . Attach 15 | 4 1 2 8 Detach . | . . . . Swap 1 | . 1 . . Drop 2 | . . . 2 Fire 29 | . 2 6 21 Melee . | . . . . Ram . | . . . . Kick . | . . . . Crush . | . . . . Escape Stasis . | . . . . Rewire . | . . . . Trap . | . . . . Miscellaneous . | . . . . Route ------- -11/Scrapyard -10/Materials -10/Mines -9/Materials History --------- Turn | Location | Event 8 | -11/Scrapyard | Discovered new exit (range 14) 115 | -11/Scrapyard | Entered Materials 306 | -10/Materials | Build established: Mutant 434 | -10/Materials | Discovered new exit (range 7) 444 | -10/Materials | Entered Mines 460 | -10/Mines | Received a Rocket Launcher from a helpful Derelict 539 | -10/Mines | Discovered new exit (range 7) 551 | -10/Mines | Entered Materials 551 | -9/Materials | Evolved 2 slots: Power x1, Utility x1 1051 | -9/Materials | Core integrity fell below 50% 1061 | -9/Materials | Core integrity fell below 20% 1068 | -9/Materials | Destroyed by G-34 Mercenary with Small Laser Last Messages --------------- >>Alert(Purge) Purged threat record, alert level lowered. 01004_ ALERT: Suspicious activity at Terminal M002. Dispatching Investigation squad. 01004_ ALERT: Alarm triggered, dispatching investigation squad. 01004_ Critical hit (Burn: +37). 01010_ Rocket Launcher destroyed. 01018_ Lgt. Treads destroyed. 01029_ Critical hit (Burn: +37). 01034_ Ion Engine destroyed. 01035_ Lgt. Ion Engine destroyed. 01035_ Lgt. Treads destroyed. 01040_ Lgt. Assault Rifle destroyed. 01041_ Lgt. Treads destroyed. 01047_ Seismic Detector destroyed. 01048_ Heat Sink destroyed. 01051_ G-34 Mercenary destroyed. 01053_ Imp. Ion Engine destroyed. 01065_ Heat Sink destroyed. Map ----- +----------------------------------------------------+ | | | | | | | | | | | | | | | | | | | | | | | ?????????????????????????????????????????????????? | | ?????????????????????????????????????????????????? | | ??????????????????????????????????????????????#### | | ?????????????????????????##???????????????????# | | ?????????????######?##### #########???????????# | | ?????????????? ?+ # #???????????# " | | ??????????????? # """ # """#???????????# " | | ???????????????^ # "T" # """#???????????# " | | ????????????????# # # """#???????????# | | ????????????????# # [[#! #??????###??# | | ????????????????# #[ [[# #?????## #### | | ????????????????# =###/######+########## | | ????????????????# g Yg % | | ????????????????# g g | | ????????????????# @ | | ????????????????##############;######### # # | | ?????????????????????????????# #???# | | ?????????????????????????????# ##### # | | ?????????????????????????????# # "Y"% #? | | ?????????????????????????????# ####### ! #? | | ?????????????????????????????# #?????# ## | | ?????????????????????????????# #?????# ! # | | ?????????????????????????????# #?????######### | | ?????????????????????????????#######?????????????? | | ?????????????????????????????????????????????????? | | ?????????????????????????????????????????????????? | | ?????????????????????????????????????????????????? | | ?????????????????????????????????????????????????? | | ?????????????????????????????????????????????????? | | ?????????????????????????????????????????????????? | | ?????????????????????????????????????????????????? | | ?????????????????????????????????????????????????? | | ?????????????????????????????????????????????????? | | ?????????????????????????????????????????????????? | | ?????????????????????????????????????????????????? | | ?????????????????????????????????????????????????? | | ?????????????????????????????????????????????????? | | ?????????????????????????????????????????????????? | | ?????????????????????????????????????????????????? | +----------------------------------------------------+ Best States ------------- Heat Dissipation 38 Energy Generation 15 Energy Capacity 275 Matter Stores 267 Matter Capacity 300 Sight Range 16 Terrain Scan Density 10 Resistance: KI 20 Resistance: TH 20 Resistance: EX 20 Resistance: EM 20 Resistance: I 20 Resistance: S 20 Resistance: P 20 Evasion (%) 50 Targeting Accuracy 5 Recoil Reduction 2 Offensive Hacking 10 Item Schematics ----------------- None Robot Schematics ------------------ None Fabricated ------------ Nothing Repaired ---------- Nothing Studied --------- None Alien Tech Used ----------------- None Achievements -------------- None Challenges ------------ None Game ------ Seed AntisysImprinterBallwheel Manual? 0 Play Time 00:17:24 Cumulative 44.7 hours Start 2025.10.24 @ 08:48:34 End 2025.10.24 @ 09:03:46 Sessions 1 Manual Loads 0 Difficulty Adventurer Special Mode None Game No. 43 Rogue 0 Adventurer 43 Explorer 0 Win Type - Total 0 Types 0/0/0/0/0/0/0/0/0/0 Lore% 17 Gallery% 31 Achievement% 16 Wizard Run 0 Options --------- Layout 1 ASCII 0 Keyboard 0 Movement Mouse Keybinds 0 Fullscreen 1 Font 16/SmallcapsGlow Map View 50x40 Zoom Use 0% Tactical HUD 1 Map Filters NONE Filters NONE Steam SD RUN: 0c346d0a-e1e2-42e3-bc65-d222a6a7b29a